bitfinex-derivatives/quotes_SOLF0:USTF0_20240905
["timestamp","ask_amount","ask_price","bid_price","bid_amount"]
[1725497945972,10.38,132.95,132.89,6.52682481]
[1725497946281,10.38,132.95,132.89,2.714]
[1725497946475,10.38,132.95,132.9,3.77059747]
[1725497946779,0.05519228,132.94,132.91,0.0543547]
[1725497946979,3.80959362,132.94,132.91,0.04892436]
[1725497947278,0.04809362,132.94,132.91,0.04892436]
[1725497948181,10.38,133.0,132.92,10.38]
[1725497948373,10.38,133.0,132.94,10.38]
[1725497948569,3.7606,132.97,132.94,14.1412]
[1725497949178,3.81653278,132.97,132.94,14.19848598]
[1725497949678,3.81653278,132.97,132.94,7.49024342]
[1725497950480,3.81653278,132.97,132.94,8.83864342]
[1725497953784,3.81653278,132.97,132.94,10.23834342]
[1725497954489,3.7607,132.96,132.94,6.47714342]
[1725497957087,0.05593278,132.97,132.94,6.47714342]
[1725497957392,0.05593278,132.97,132.95,10.38]
[1725497957586,0.05593278,132.97,132.96,3.7607]
[1725497960087,3.7594,133.01,132.96,10.38]
[1725497960980,0.05760877,133.0,132.97,0.05267607]
[1725497961386,0.05760877,133.0,132.98,3.76]
[1725497967594,0.05760877,133.0,132.99,14.1398]
[1725497967795,1.3401,133.09,132.99,10.38]
[1725497967986,10.38,133.07,133.0,1.3179]
[1725497968187,10.38,133.04,133.0,1.3179]
[1725497968794,3.7592,133.02,133.01,0.05103516]
[1725497978400,3.7603,132.98,132.96,1.3179]
[1725497979394,3.81614571,132.98,132.96,1.3710719]
[1725497981706,3.7604,132.97,132.96,1.3710719]
[1725497983003,3.7604,132.97,132.96,0.0531719]
[1725497991312,10.38,132.97,132.89,2.7631]
[1725497991506,10.38,132.97,132.89,16.93730617]
[1725497991807,10.38,132.97,132.89,16.9057]
[1725497992110,3.7617,132.93,132.89,16.9057]
[1725497992307,3.7617,132.93,132.89,20.6690559]
[1725497992506,0.05168988,132.92,132.9,0.05253793]
[1725497992901,0.05168988,132.92,132.91,10.38]
[1725497994313,0.05168988,132.92,132.91,14.1421]
[1725497994613,0.05168988,132.92,132.91,10.38]
[1725497996313,3.7611,132.95,132.91,10.38]
[1725497996513,1.3227,133.0,132.93,10.38]
[1725497996816,3.7605,132.97,132.94,10.38]
[1725497997013,3.7605,132.97,132.94,11.7582]
[1725497997514,3.80953566,132.97,132.94,11.80657815]
[1725497998415,3.80953566,132.97,132.94,15.56777815]
[1725498002318,3.80953566,132.97,132.96,10.38]
[1725498003113,0.04903566,132.97,132.96,10.38]
[1725498004917,0.04903566,132.97,132.94,15.56777815]
[1725498005525,3.80953566,132.97,132.94,15.56777815]
[1725498005817,0.04903566,132.97,132.94,11.80657815]
[1725498006016,0.04903566,132.97,132.96,10.38]
[1725498006513,3.80943566,132.97,132.96,10.38]
[1725498006922,0.04903566,132.97,132.96,10.38]
[1725498007218,0.04903566,132.97,132.96,14.05495749]
[1725498009026,0.04903566,132.97,132.96,17.81565749]
[1725498010325,1.4378,133.05,132.96,17.81565749]
[1725498010326,1.4378,133.05,132.96,14.05495749]
[1725498010628,56.5433,133.14,132.96,14.05495749]
[1725498010629,10.38,133.07,133.0,10.38]
[1725498010822,3.7592,133.02,133.0,10.38]
[1725498011027,10.38,133.07,133.0,10.38]
[1725498011630,10.38,133.07,133.0,14.1393]
[1725498011835,0.05166396,133.05,133.02,0.05110818]
[1725498012729,3.7586,133.04,133.02,0.05110818]
[1725498013732,3.80986396,133.05,133.02,10.43110818]
[1725498013931,0.05166396,133.05,133.02,10.43110818]
[1725498015435,3.7585,133.04,133.02,10.43110818]
[1725498015935,0.05166396,133.05,133.02,10.43110818]
[1725498015936,3.80986396,133.05,133.02,10.43110818]
[1725498017832,0.05166396,133.05,133.03,10.38]
[1725498018037,0.05166396,133.05,133.02,0.05110818]
[1725498018240,3.7586,133.04,133.02,0.05110818]
[1725498018932,3.7586,133.04,133.02,10.43110818]
[1725498019335,0.05166396,133.05,133.02,10.43110818]
[1725498019634,0.05166396,133.05,133.04,10.38]
[1725498019833,0.05166396,133.05,133.02,0.05110818]
[1725498020041,0.05166396,133.05,133.02,10.43110818]
[1725498020943,0.05166396,133.05,133.03,7.49685967]
[1725498021128,0.05166396,133.05,133.04,10.38]
[1725498021333,0.05166396,133.05,133.04,14.1384]
[1725498023935,0.05166396,133.05,133.03,3.73815967]
[1725498024246,0.05166396,133.05,133.03,10.38]
[1725498025141,3.80986396,133.05,133.03,10.38]
[1725498026244,0.05166396,133.05,133.02,0.05110818]
[1725498027043,3.7587,133.03,133.02,0.05110818]
[1725498031346,3.7587,133.03,133.02,10.43110818]
[1725498033050,3.7587,133.03,133.02,0.05110818]
[1725498034444,3.7587,133.03,133.02,10.43110818]
[1725498038648,3.7587,133.03,133.02,0.05110818]
[1725498039150,3.7586,133.04,133.02,10.43110818]
[1725498039555,0.05166396,133.05,133.02,10.43110818]
[1725498039756,3.80986396,133.05,133.02,14.18990818]
[1725498040555,3.80986396,133.05,133.04,10.38]
[1725498042351,3.80986396,133.05,133.02,10.43110818]
[1725498042652,0.05166396,133.05,133.02,0.05110818]
[1725498043062,3.7587,133.03,133.02,0.05110818]
[1725498043446,3.7587,133.03,132.87,233.526]
[1725498043447,10.38,133.03,132.87,233.526]
[1725498043652,3.7603,132.98,132.96,14.05495749]
[1725498044461,3.7603,132.98,132.96,10.38]
[1725498044660,3.80795838,132.98,132.96,10.43333698]
[1725498044861,3.80795838,132.98,132.96,0.05333698]
[1725498045058,3.80795838,132.98,132.96,10.43333698]
[1725498045857,0.04765838,132.98,132.97,10.38]
[1725498046255,1.3974,133.04,132.99,3.7598]
[1725498046459,41.52,133.14,133.02,10.38]
[1725498046660,10.38,133.08,133.02,10.38]
[1725498046954,10.38,133.09,133.02,10.38]
[1725498047363,0.05655917,133.07,133.04,0.05606346]
[1725498048354,3.7581,133.05,133.04,0.05606346]
[1725498049262,0.05655917,133.07,133.04,0.05606346]
[1725498049263,3.7579,133.06,133.04,0.05606346]
[1725498049461,0.05655917,133.07,133.04,0.05606346]
[1725498049857,3.7578,133.06,133.04,0.05606346]
[1725498050258,0.05655917,133.07,133.04,0.05606346]
[1725498050463,3.7581,133.05,133.04,0.05606346]
[1725498051863,14.19971706,133.07,132.93,41.52]
[1725498051864,3.7591,133.02,132.99,10.38]
[1725498053066,3.81158335,133.02,132.99,10.43678049]
[1725498053468,3.81158335,133.02,132.99,14.19648049]
[1725498054264,0.05248335,133.02,133.0,10.38]
[1725498054766,0.05248335,133.02,133.0,14.1395]
[1725498057756,0.05248335,133.02,133.0,10.38]
[1725498057960,3.81148335,133.02,133.0,10.38]
[1725498059966,0.05248335,133.02,133.0,10.38]
[1725498060169,0.05248335,133.02,133.0,51.9]
[1725498060472,0.05248335,133.02,132.99,0.05678049]
[1725498060661,0.05248335,133.02,133.0,3.7594]
[1725498060865,0.05248335,133.02,133.01,10.38]
[1725498061971,0.05248335,133.02,133.01,14.1393]
[1725498062267,0.05248335,133.02,132.99,0.05678049]
[1725498062466,0.05248335,133.02,132.99,10.43678049]
[1725498063375,3.7593,133.01,132.99,10.43678049]
[1725498063568,0.05248335,133.02,132.99,10.43678049]
[1725498063967,3.81158335,133.02,133.0,10.38]
[1725498064474,0.05248335,133.02,133.01,3.7593]
[1725498066375,0.05248335,133.02,133.0,3.7595]
[1725498066566,0.05248335,133.02,133.0,14.1395]
[1725498067971,0.05248335,133.02,132.99,3.81648049]
[1725498068168,0.05248335,133.02,133.0,10.38]
[1725498070175,3.81148335,133.02,133.0,10.38]
[1725498071774,0.05248335,133.02,133.0,14.1395]
[1725498071978,26.34649217,133.14,133.01,10.38]
[1725498072175,10.38,133.1,133.04,10.38]
[1725498072476,3.758,133.06,133.04,10.38]
[1725498072880,3.81311425,133.06,133.04,10.4320811]
[1725498074679,0.05511425,133.06,133.05,10.38]
[1725498074879,0.05511425,133.06,133.04,0.0520811]
[1725498075181,3.7581,133.05,133.04,0.0520811]
[1725498075871,3.7581,133.05,132.97,2.7409]
[1725498075872,3.7593,133.01,132.97,2.7409]
[1725498076179,10.38,133.06,132.99,10.38]
[1725498076478,3.7591,133.02,132.97,2.7409]
[1725498076674,10.38,133.05,132.97,1.3769]
[1725498076869,7.5133,133.11,132.97,1.3769]
[1725498076870,22.51,133.13,133.0,10.38]
[1725498077075,10.38,133.08,132.98,2.7077]
[1725498077273,10.38,133.07,133.01,10.38]
[1725498077472,0.05745434,133.04,133.02,0.05676509]
[1725498078376,3.7589,133.03,133.02,0.05676509]
[1725498078577,0.05745434,133.04,133.02,10.43676509]
[1725498078973,3.81595434,133.04,133.02,10.43676509]
[1725498079781,0.05745434,133.04,133.02,10.43676509]
[1725498080878,0.05745434,133.04,133.02,14.19566509]
[1725498081089,3.72312073,133.13,133.05,10.38]
[1725498081278,1.3321,133.14,133.03,1.4347]
[1725498081279,10.38,133.1,133.04,10.38]
[1725498081483,10.38,133.09,133.03,11.8147]
[1725498081881,3.7582,133.05,133.03,1.4347]
[1725498082387,3.7582,133.05,133.03,1.48312729]
[1725498085790,3.7584,133.04,133.03,0.04842729]
[1725498094598,31.2464812,133.06,132.96,25.97]
[1725498094791,31.2464812,133.06,132.96,27.3301]
[1725498094993,31.2464812,133.06,132.98,3.76]
[1725498095494,0.0577823,133.03,133.01,0.05121541]
[1725498096201,25.97,133.02,132.96,1.3601]
[1725498096999,3.7603,132.98,132.96,1.3601]
[1725498097397,3.81132693,132.98,132.96,1.40932806]
[1725498100797,0.05102693,132.98,132.96,1.40932806]
[1725498101402,0.05102693,132.98,132.96,5.16982806]
[1725498102599,5.2764812,133.06,132.96,27.37932806]
[1725498102795,5.2764812,133.06,132.98,25.97]
[1725498103103,3.7592,133.02,132.98,29.7299]
[1725498103504,0.05785749,133.01,132.99,0.05693309]
[1725498103900,0.05785749,133.01,132.99,10.44693309]
[1725498108102,0.05785749,133.01,132.99,0.05693309]
[1725498108302,0.05785749,133.01,132.99,10.44693309]
[1725498108803,3.81715749,133.01,132.99,10.44693309]
[1725498109511,0.05785749,133.01,132.99,0.05693309]
[1725498110005,3.81735749,133.01,132.99,0.05693309]
[1725498110906,0.05785749,133.01,132.99,3.81673309]
[1725498111108,0.05785749,133.01,132.99,14.20673309]
[1725498116419,0.05785749,133.01,133.0,3.7595]
[1725498116621,0.05785749,133.01,133.0,14.1495]
[1725498117620,30.23246479,133.09,133.0,20.78]
[1725498117826,30.23246479,133.09,133.02,10.39]
[1725498118325,11.8331,133.09,133.02,10.39]
[1725498118524,0.05006909,133.07,133.04,0.04839567]
[1725498118724,3.7581,133.05,133.04,0.04839567]
[1725498119424,3.7581,133.05,133.04,10.43839567]
[1725498120415,3.758,133.06,133.04,10.43839567]
[1725498122218,3.80766909,133.07,133.04,14.19659567]
[1725498122421,0.05006909,133.07,133.04,10.43839567]
[1725498123823,0.05006909,133.07,133.04,14.19659567]
[1725498124029,0.05006909,133.07,133.04,0.04839567]
[1725498124623,3.7581,133.05,133.04,0.04839567]
[1725498134732,0.05006909,133.07,133.04,0.04839567]
[1725498134932,0.05006909,133.07,133.05,10.39]
[1725498136331,0.05006909,133.07,133.05,3.7581]
[1725498136628,0.05006909,133.07,133.05,14.1481]
[1725498137633,0.05006909,133.07,133.05,10.39]
[1725498138036,3.80766909,133.07,133.05,10.39]
[1725498138236,0.05006909,133.07,133.04,10.43839567]
[1725498138437,0.05006909,133.07,133.04,0.04839567]
[1725498138837,3.758,133.06,133.04,0.04839567]
[1725498139532,3.7578,133.06,133.04,0.04839567]
[1725498140538,0.05006909,133.07,133.04,0.04839567]
[1725498140834,3.7581,133.05,133.04,0.04839567]
[1725498150346,7.53704928,133.05,133.04,0.04839567]
[1725498151346,3.7581,133.05,133.04,0.04839567]
[1725498152245,3.78825475,133.06,132.96,1.3684]
[1725498152446,10.39,133.05,132.98,10.39]
[1725498153149,3.7594,133.01,132.98,10.39]
[1725498153349,3.80721663,133.01,132.98,10.44410038]
[1725498154347,3.80721663,133.01,132.98,14.20420038]
[1725498158642,3.7595,133.0,132.98,14.20420038]
[1725498161647,3.7595,133.0,132.98,10.44410038]
[1725498168053,3.7598,132.99,132.98,0.05410038]
[1725498168255,0.04781663,133.01,132.98,0.05410038]
[1725498168459,0.04781663,133.01,132.98,10.44410038]
[1725498169061,3.80721663,133.01,132.98,14.20400038]
[1725498169558,3.80721663,133.01,132.98,10.44410038]
[1725498169962,3.7596,133.0,132.98,10.44410038]
[1725498170162,0.04781663,133.01,132.98,10.44410038]
[1725498170458,3.7598,133.0,132.98,10.44410038]
[1725498170860,0.04781663,133.01,132.98,10.44410038]
[1725498171656,3.7597,133.0,132.98,10.44410038]
[1725498172562,3.7598,132.99,132.98,0.05410038]
[1725498178759,3.7597,133.0,132.98,0.05410038]
[1725498179354,3.7597,133.0,132.98,10.44410038]
[1725498182159,0.04781663,133.01,132.99,3.7598]
[1725498182361,0.04781663,133.01,133.0,10.39]
[1725498182563,7.5132,133.11,133.01,10.39]
[1725498182870,3.7584,133.05,133.01,17.9540936]
[1725498183363,3.7584,133.05,133.02,3.7589]
[1725498183559,0.0508451,133.04,133.02,3.80716084]
[1725498183964,0.0508451,133.04,133.02,7.62005096]
[1725498185562,0.0508451,133.04,133.03,10.39]
[1725498186768,10.39,133.11,133.03,10.39]
[1725498186969,10.39,133.11,133.04,10.39]
[1725498187867,0.05061997,133.09,133.06,0.05682545]
[1725498188468,3.7573,133.08,133.06,0.05682545]
[1725498190971,0.05061997,133.09,133.06,0.05682545]
[1725498192066,0.05061997,133.09,133.07,10.39]
[1725498192460,0.05061997,133.09,133.08,3.7573]
[1725498192863,77.06187674,133.17,133.07,13.2394]
[1725498193073,3.7555,133.15,133.11,14.1462]
[1725498193872,3.7556,133.14,133.11,17.98157455]
[1725498194074,0.04905,133.14,133.11,18.03722956]
[1725498194263,0.04905,133.14,133.11,14.28102956]
[1725498194464,18.34703723,133.21,133.13,10.39]
[1725498194667,62.67302848,133.27,133.16,10.39]
[1725498194668,10.39,133.22,133.16,10.39]
[1725498195072,3.7544,133.19,133.16,10.39]
[1725498195471,3.81180591,133.19,133.16,10.43846838]
[1725498195666,3.7545,133.18,133.16,10.43846838]
[1725498195866,0.05740591,133.19,133.16,10.43846838]
[1725498197677,3.81160591,133.19,133.16,10.43846838]
[1725498200675,0.05740591,133.19,133.16,0.04846838]
[1725498201765,3.7545,133.18,133.16,0.04846838]
[1725498202576,3.7547,133.17,133.16,0.04846838]
[1725498202775,14.1447,133.17,133.16,0.04846838]
[1725498203379,3.7547,133.17,133.16,0.04846838]
[1725498204576,3.7555,133.15,133.12,10.39]
[1725498204778,10.39,133.17,133.11,14.22537455]
[1725498204985,10.39,133.17,133.11,10.39]
[1725498205467,0.05426178,133.15,133.11,14.15474209]
[1725498205671,3.80976178,133.15,133.13,0.05680428]
[1725498208574,0.05426178,133.15,133.13,10.44680428]
[1725498208976,0.05426178,133.15,133.13,14.20270428]
[1725498210385,0.05426178,133.15,133.13,15.52380428]
[1725498210581,0.05426178,133.15,133.13,11.76790428]
[1725498212379,3.80956178,133.15,133.13,11.76790428]
[1725498214389,0.05426178,133.15,133.13,15.52370428]
[1725498215789,0.05426178,133.15,133.13,11.76790428]
[1725498216588,3.80956178,133.15,133.13,11.76790428]
[1725498218288,3.80956178,133.15,133.13,1.37790428]
[1725498218494,3.80956178,133.15,133.14,10.39]
[1725498223084,3.7556,133.14,133.13,0.05680428]
[1725498230494,3.80966178,133.15,133.13,0.05680428]
[1725498230792,0.05426178,133.15,133.14,10.39]
[1725498231290,10.39,133.23,133.17,10.39]
[1725498232089,3.7544,133.19,133.17,10.39]
[1725498232397,3.7544,133.19,133.17,10.43933455]
[1725498232898,3.7545,133.18,133.17,0.04933455]
[1725498235291,0.04794042,133.21,133.17,10.43933455]
[1725498235500,0.04794042,133.21,133.19,10.39]
[1725498236200,3.80174042,133.21,133.19,10.39]
[1725498236401,3.80174042,133.21,133.19,14.20917849]
[1725498236701,3.7539,133.2,133.17,10.43933455]
[1725498237199,3.80164042,133.21,133.19,10.39]
[1725498238795,3.7539,133.2,133.18,3.79477359]
[1725498238993,3.7539,133.2,133.17,10.43933455]
[1725498240199,3.7539,133.2,133.17,14.19403455]
[1725498240897,3.7539,133.2,133.17,10.43933455]
[1725498242496,10.43794042,133.21,133.17,0.04933455]
[1725498244004,3.7545,133.18,133.17,0.04933455]
[1725498244200,3.7545,133.18,133.17,10.43933455]
[1725498245803,3.7543,133.19,133.17,10.43933455]
[1725498246905,3.7541,133.2,133.17,10.43933455]
[1725498247107,3.7541,133.2,133.19,10.39]
[1725498252307,3.7542,133.19,133.18,3.77610034]
[1725498252506,3.7542,133.19,133.18,10.39]
[1725498252707,3.7542,133.19,133.18,14.08376875]
[1725498255510,3.7545,133.18,133.17,0.04933455]
[1725498257414,3.7543,133.19,133.17,10.43933455]
[1725498258917,3.754,133.2,133.17,10.43933455]
[1725498259917,3.754,133.2,133.18,3.72136687]
[1725498260626,0.04794042,133.21,133.19,10.39]
[1725498260813,0.04794042,133.21,133.19,14.22064213]
[1725498261521,39.33940539,133.31,133.19,55.78064213]
[1725498261714,39.33940539,133.31,133.25,10.39]
[1725498262524,3.7516,133.28,133.27,0.05747136]
[1725498265122,3.8059592,133.29,133.27,0.05747136]
[1725498265424,3.8059592,133.29,133.27,10.44747136]
[1725498265827,0.0545592,133.29,133.27,10.44747136]
[1725498266126,3.7516,133.28,133.27,10.44747136]
[1725498267425,3.7516,133.28,133.27,0.05747136]
[1725498268130,3.7516,133.28,133.27,10.44747136]
[1725498268932,3.8059592,133.29,133.27,10.44747136]
[1725498269432,3.7516,133.28,133.27,10.44747136]
[1725498271833,3.7516,133.28,133.27,0.05747136]
[1725498302850,3.8061592,133.29,133.27,10.44747136]
[1725498306855,3.7516,133.28,133.27,0.05747136]
[1725498316163,3.8060592,133.29,133.27,10.44747136]
[1725498316767,3.7516,133.28,133.27,0.05747136]
[1725498321777,3.8060592,133.29,133.27,10.44747136]
[1725498324071,0.0545592,133.29,133.27,10.44747136]
[1725498324277,0.0545592,133.29,133.28,10.39]
[1725498331476,0.0545592,133.29,133.28,14.1416]
[1725498332781,38.3650306,133.37,133.29,3.7513]
[1725498332984,0.27585286,133.36,133.3,10.39]
[1725498333584,3.7505,133.32,133.3,10.39]
[1725498333888,0.05503124,133.32,133.3,10.44316946]
[1725498334781,3.80553124,133.32,133.3,10.44316946]
[1725498336079,0.05503124,133.32,133.3,14.19416946]
[1725498338285,0.05503124,133.32,133.3,10.44316946]
[1725498339287,3.80573124,133.32,133.3,10.44316946]
[1725498341991,3.7508,133.31,133.3,0.05316946]
[1725498343295,3.80563124,133.32,133.3,0.05316946]
[1725498343490,3.80563124,133.32,133.31,10.39]
[1725498347687,0.05503124,133.32,133.31,10.39]
[1725498348296,0.05503124,133.32,133.31,11.7115]
[1725498349401,0.05503124,133.32,133.31,1.3215]
[1725498349596,0.05503124,133.32,133.31,11.7115]
[1725498351997,0.05503124,133.32,133.31,1.3215]
[1725498352302,0.05503124,133.32,133.31,11.7115]
[1725498352909,3.80553124,133.32,133.31,1.3215]
[1725498353095,0.05503124,133.32,133.3,10.44316946]
[1725498353502,3.7508,133.31,133.3,10.44316946]
[1725498355002,3.80563124,133.32,133.3,0.05316946]
[1725498355202,3.80563124,133.32,133.31,10.39]
[1725498364912,3.7508,133.31,133.3,0.05316946]
[1725498374107,7.49132558,133.31,133.3,0.05316946]
[1725498375709,3.74052558,133.31,133.24,92.89438894]
[1725498375909,10.39,133.29,133.22,10.39]
[1725498376114,10.39,133.3,133.23,10.39]
[1725498376812,0.05461874,133.28,133.25,0.05605399]
[1725498377414,3.7524,133.26,133.25,0.05605399]
[1725498392334,0.05461874,133.28,133.25,10.44605399]
[1725498392937,3.752,133.27,133.25,10.44605399]
[1725498397340,0.05461874,133.28,133.26,14.12526983]
[1725498397538,0.05461874,133.28,133.27,10.39]
[1725498397935,0.05461874,133.28,133.27,14.12677099]
[1725498398135,10.39,133.34,133.27,14.12677099]
[1725498398835,3.7509,133.31,133.27,17.87847099]
[1725498399040,0.05005583,133.3,133.28,0.05712591]
[1725498402941,0.05005583,133.3,133.28,3.80872591]
[1725498405645,0.05005583,133.3,133.29,10.39]
[1725498407546,0.05005583,133.3,133.29,14.1414]
[1725498417447,3.71792948,133.38,133.31,3.7507]
[1725498417648,10.39,133.38,133.31,14.1407]
[1725498417949,3.76388175,133.37,133.31,14.1407]
[1725498418345,10.39,133.38,133.31,14.1407]
[1725498418544,0.05185784,133.35,133.33,0.05300978]
[1725498418846,3.80165784,133.35,133.33,0.05300978]
[1725498419749,3.80165784,133.35,133.33,10.44300978]
[1725498420146,3.7499,133.34,133.33,10.44300978]
[1725498420343,0.05185784,133.35,133.33,0.05300978]
[1725498421655,3.80175784,133.35,133.33,0.05300978]
[1725498423353,0.05185784,133.35,133.33,0.05300978]
[1725498424051,3.80155784,133.35,133.33,0.05300978]
[1725498424952,0.05185784,133.35,133.33,3.80320978]
[1725498425249,0.05185784,133.35,133.34,3.81011913]
[1725498426049,0.05185784,133.35,133.34,14.1399]
[1725498426255,0.05185784,133.35,133.34,19.17278702]
[1725498429053,3.73835986,133.45,133.34,15.42288702]
[1725498429259,3.73835986,133.45,133.38,10.39]
[1725498429451,14.12835986,133.45,133.38,10.39]
[1725498429656,14.12835986,133.45,133.39,3.7485]
[1725498430054,0.04773171,133.43,133.41,0.05534576]
[1725498430255,3.7479,133.42,133.41,0.05534576]
[1725498437565,3.7486,133.39,133.36,10.39]
[1725498437962,10.39,133.42,133.36,10.39]
[1725498438664,0.04765592,133.4,133.38,0.05544772]
[1725498438858,3.7486,133.39,133.38,0.05544772]
[1725498439565,0.04765592,133.4,133.38,0.05544772]
[1725498439566,3.79605592,133.4,133.38,0.05544772]
[1725498441864,0.04765592,133.4,133.39,14.1385]
[1725498442667,0.04765592,133.4,133.39,15.5671]
[1725498445066,0.04765592,133.4,133.39,11.8186]
[1725498446671,0.04765592,133.4,133.39,15.5671]
[1725498452874,0.04765592,133.4,133.39,11.8186]
[1725498453678,0.04765592,133.4,133.38,0.05544772]
[1725498454372,3.7485,133.39,133.38,0.05544772]
[1725498473082,3.79605592,133.4,133.38,10.44544772]
[1725498478095,3.7485,133.39,133.38,10.44544772]
[1725498479494,3.7485,133.39,133.38,0.05544772]
[1725498484599,3.7485,133.39,133.38,10.44544772]
[1725498485396,3.79615592,133.4,133.38,10.44544772]
[1725498489706,0.04765592,133.4,133.39,10.39]
[1725498493307,0.04765592,133.4,133.38,0.05544772]
[1725498496416,0.04765592,133.4,133.39,10.39]
[1725498497513,0.04765592,133.4,133.38,10.44544772]
[1725498500317,3.79595592,133.4,133.38,10.44544772]
[1725498502818,3.7485,133.39,133.38,0.05544772]
[1725498520537,3.7498,133.35,133.31,10.39]
[1725498520829,3.7498,133.35,133.31,14.1407]
[1725498521438,3.7498,133.35,133.31,17.91094801]
[1725498521636,0.05480585,133.34,133.32,0.0550514]
[1725498525238,0.05480585,133.34,133.32,3.8053514]
[1725498525437,3.80480585,133.34,133.32,0.0550514]
[1725498525735,0.05480585,133.34,133.32,0.0550514]
[1725498526136,3.7502,133.33,133.32,0.0550514]
[1725498533439,3.80490585,133.34,133.32,0.0550514]
[1725498534539,3.80490585,133.34,133.32,3.8055514]
[1725498534740,0.05480585,133.34,133.32,3.8055514]
[1725498540844,3.80480585,133.34,133.32,0.0550514]
[1725498541040,0.05480585,133.34,133.32,0.0550514]
[1725498541445,3.7502,133.33,133.32,0.0550514]
[1725498557653,3.80500585,133.34,133.32,0.0550514]
[1725498557851,0.05480585,133.34,133.32,0.0550514]
[1725498558757,0.05480585,133.34,133.33,14.1402]
[1725498562266,0.05480585,133.34,133.33,15.5203]
[1725498563461,0.05480585,133.34,133.33,5.1303]
[1725498563666,0.05480585,133.34,133.33,15.5203]
[1725498563866,0.05480585,133.34,133.33,5.1303]
[1725498564062,0.05480585,133.34,133.33,15.5203]
[1725498566168,0.05480585,133.34,133.33,3.7502]
[1725498566561,0.05480585,133.34,133.33,14.1402]
[1725498570172,0.05480585,133.34,133.32,14.1954514]
[1725498570768,0.05480585,133.34,133.33,3.7502]
[1725498572267,0.05480585,133.34,133.32,14.1954514]
[1725498572476,0.05480585,133.34,133.32,0.0550514]
[1725498574380,3.7502,133.33,133.32,0.0550514]
[1725498582191,7.53639654,133.33,133.32,0.0550514]
[1725498586196,17.92639654,133.33,133.32,0.0550514]
[1725498602701,3.7502,133.33,133.32,0.0550514]
[1725498602908,3.80500585,133.34,133.32,0.0550514]
[1725498603106,0.05480585,133.34,133.32,0.0550514]
[1725498603511,0.05480585,133.34,133.32,1.3900514]
[1725498603712,72.13560359,133.41,133.33,10.39]
[1725498603908,82.52560359,133.41,133.35,10.39]
[1725498604103,3.7485,133.39,133.36,3.66070516]
[1725498604805,3.80519325,133.39,133.36,3.70844093]
[1725498607413,10.39,133.37,133.36,0.04773577]
[1725498608415,14.1391,133.37,133.36,0.04773577]
[1725498619621,3.7503,133.33,133.3,7.42223417]
[1725498619923,3.7503,133.33,133.27,1.4268]
[1725498619924,10.39,133.33,133.28,1.3595]
[1725498620427,3.7507,133.32,133.28,8.88697719]
[1725498620820,0.05543942,133.31,133.29,0.04977066]
[1725498626127,3.80633942,133.31,133.29,0.04977066]
[1725498626832,10.39,133.3,133.19,3.79265519]
[1725498627035,10.39,133.29,133.21,1.428]
[1725498627224,3.7524,133.26,133.22,3.7532]
[1725498627926,3.7524,133.26,133.23,7.50271865]
[1725498628127,3.80362218,133.26,133.23,7.55555259]
[1725498629528,0.05122218,133.26,133.24,14.1427]
[1725498629735,14.10209437,133.31,133.25,1.4058]
[1725498629937,10.39,133.31,133.25,1.4058]
[1725498630632,3.7518,133.28,133.25,1.4058]
[1725498630833,3.80615232,133.28,133.25,1.46334301]
[1725498632525,3.752,133.27,133.25,1.46334301]
[1725498635631,3.7522,133.26,133.25,1.46334301]
[1725498643251,3.7522,133.26,133.25,0.05754301]
[1725498649958,14.1422,133.26,133.25,0.05754301]
[1725498654652,10.39,133.26,133.16,1.4357]
[1725498654860,10.39,133.22,133.16,1.4357]
[1725498655057,10.39,133.22,133.17,3.79654654]
[1725498655355,3.7537,133.21,133.17,7.55114654]
[1725498655745,0.04990943,133.2,133.18,0.05399669]
[1725498656850,3.80390943,133.2,133.18,0.05399669]
[1725498658149,3.7542,133.19,133.18,0.05399669]
[1725498659262,14.1442,133.19,133.18,0.05399669]
[1725498659755,17.81694911,133.19,133.18,0.05399669]
[1725498661561,14.1442,133.19,133.18,0.05399669]
[1725498662458,10.39,133.19,133.12,1.448]
[1725498662661,3.7554,133.15,133.12,1.448]
[1725498663256,10.39,133.15,133.09,3.8253849]
[1725498663456,10.39,133.12,133.08,2.8254]